Cogmind - Beta 13 @@@ ROGUE MODE // 2024.04.28 @ 16:27:35 Player: luckinvolved Result: Destroyed by G-47 Trooper with Particle Gun Performance ------------- Evolutions (2) 1000 Regions Visited (6) 1200 Robots Destroyed (66) 330 Value Destroyed (1366) 1366 Prototype IDs (2) 40 Alien Tech Used (0) 0 Bonus (-3) -3 TOTAL SCORE: 3933 Bonus ------- Aligned with FarCom 300 Friendly Fire -303 Cogmind --------- Core Integrity 0/550 Matter 300/300 Energy 96/100 System Corruption 1% Temperature Cool (9) Movement Rolling (95) Location -8/Storage Parts ------- > --- POWER (1) -------- (None) > --- PROPULSION (4) --- Wheel Compact Wheel Compact Wheel Compact Wheel > --- UTILITY (4) ------ Structural Scanner Trap Scanner Improved Signal Interpreter Medium Armor Plating > --- WEAPON (2) ------- Beam Rifle Heavy Hammer > --- INVENTORY (5) ---- Light Treads Improved Heat Sink Compact Matter Pod (150) Improved Terrain Scanner Trap Reconfigurator Peak State ------------ > --- POWER ------------ Deuterium Engine > --- PROPULSION ------- Light Treads Advanced Treads > --- UTILITY ---------- Trap Scanner Improved Signal Interpreter Terrain Scan Processor Trap Reconfigurator > --- WEAPON ----------- Rocket Launcher Heavy Hammer > --- INVENTORY -------- Improved Heat Sink Compact Matter Pod Structural Scanner Improved Terrain Scanner [Rating: 29] Favorites ----------- Power Ion Engine Engine Ion Engine Power Core Light Nuclear Core Propulsion Light Treads Treads Light Treads Leg Aluminum Leg Wheel Compact Wheel Flight Unit Flight Unit Utility Signal Interpreter Device Trap Reconfigurator Storage High-capacity Storage Unit Processor Signal Interpreter Protection Medium Armor Plating Weapon Autogun Energy Gun Beam Rifle Ballistic Gun Autogun Launcher Rocket Launcher Impact Weapon Heavy Hammer Build | -11 -10 -10 -10 -9 -8 -8 ------- Run | Yrd Mat Min Exi Min Mat Sto Slots Evolved 4 | . . . . . 4 . Power . | . . . . . . . Propulsion 2 | . . . . . 2 . Utility 2 | . . . . . 2 . Weapon . | . . . . . . . Parts Attached 75 | 6 4 12 1 4 24 24 Power 7 | 1 . 1 . 1 2 2 Engine 6 | 1 . 1 . 1 1 2 Core 1 | . . . . . 1 . Reactor . | . . . . . . . Propulsion 13 | 2 . 1 . 1 2 7 Treads 6 | 2 . 1 . 1 . 2 Leg 1 | . . . . . . 1 Wheel 4 | . . . . . . 4 Hover . | . . . . . . . Flight 2 | . . . . . 2 . Utility 23 | 1 2 . 1 . 7 12 Device 14 | . . . . . 5 9 Storage 3 | 1 1 . 1 . . . Processor 3 | . 1 . . . 1 1 Hackware . | . . . . . . . Protection 3 | . . . . . 1 2 Artifact . | . . . . . . . Weapon 32 | 2 2 10 . 2 13 3 Energy Gun 3 | . . . . . 2 1 Energy Cannon . | . . . . . . . Ballistic Gun 15 | 2 2 6 . . 5 . Ballistic Cannon . | . . . . . . . Launcher 11 | . . 4 . 2 4 1 Special Weapon . | . . . . . . . Impact Weapon 3 | . . . . . 2 1 Slashing Weapon . | . . . . . . . Piercing Weapon . | . . . . . . . Special Melee Weapon . | . . . . . . . Unidentified Prototypes 2 | . . . . . 2 . Parts Lost 24 | . . 4 . 2 12 6 Power 7 | . . 1 . 1 3 2 Propulsion 8 | . . 1 . 1 4 2 Utility 3 | . . . . . 2 1 Weapon 6 | . . 2 . . 3 1 Highest Loss Streak 6 | . . 1 . 1 6 3 To Critical Strikes 1 | . . 1 . . . . Average Slot Usage (%) 88 | . 98 99 100 99 70 75 Engine 10 | . 14 14 14 13 6 6 Treads 20 | . 28 27 28 28 15 7 Wheel 2 | . . . . . . 9 Device 6 | . . . . . 13 17 Storage 8 | . 14 14 14 14 7 . Processor 12 | . 12 14 14 14 9 12 Protection 1 | . . . . . . 4 Energy Gun 1 | . . . . . 1 2 Ballistic Gun 14 | . 27 23 28 4 12 . Launcher 4 | . . 4 . 23 1 5 Impact Weapon 2 | . . . . . . 9 Naked Turns . | . . . . . . . Heaviest Build 61 | 11 19 21 51 52 61 26 Greatest Support 58 | 40 40 40 40 40 40 58 Greatest Overweight (x) 14 | 3 . 1 1 1 14 8 Average Overweight (x) . | . . . . 1 . . Largest Inventory Capacity 20 | 8 10 10 20 20 20 5 Average Capacity 12 | 7 9 10 17 20 18 5 Most Carried 13 | 2 10 10 11 11 13 5 Average Carried 7 | 1 7 9 10 10 9 4 Final Capacity 20 | 8 10 10 20 20 5 5 Final Carried 11 | 2 10 10 11 10 4 5 Class Distribution -------------------- 88% | Mutant 8% | Scavenger-Assassin 3% | Assassin Dominant Class ---------------- Mutant | -10/Materials Mutant | -10/Mines Mutant | -10/Exiles Mutant | -9/Mines Mutant | -8/Materials Mutant | -8/Storage Resources | -11 -10 -10 -10 -9 -8 -8 ----------- Run | Yrd Mat Min Exi Min Mat Sto Matter Collected 2011 | 169 93 567 . 151 248 783 Remotely . | . . . . . . . Salvage Created 1721 | . 224 185 . 89 523 700 Parts 99 | . 19 8 . 17 23 32 Haulers Intercepted 5 | . 2 . . . . 3 Recyclers Shooed 1 | . . 1 . . . . Parts Field Recycled . | . . . . . . . Retrieved Matter . | . . . . . . . Parts Self-Destructed . | . . . . . . . Prevented . | . . . . . . . Kills | -11 -10 -10 -10 -9 -8 -8 ------- Run | Yrd Mat Min Exi Min Mat Sto Combat Hostiles Destroyed 52 | . 4 13 . 12 12 11 Melee 1 | . . . . . 1 . Guns 29 | . 4 12 . 4 7 2 AOE 21 | . . 1 . 8 4 8 Classes Destroyed 11 | . 4 3 . . 2 2 Worker 6 | . . 1 . . 1 4 Builder 4 | . . . . . . 4 Hauler 5 | . 2 . . . . 3 Recycler 4 | . . . . . 1 3 Drone 2 | . . . . . . 2 Watcher 4 | . 2 . . . 1 1 Swarmer 23 | . 3 3 . 12 3 2 Grunt 13 | . 1 . . . 8 4 Sentry 6 | . . . . . 1 5 Demolisher 1 | . . 1 . . . . Assembled 9 | . . 9 . . . . Best Kill Streak 7 | . 3 3 . 4 7 6 Combat Bots Only 6 | . 3 3 . 4 6 4 Max Kills in Single Turn 3 | . 1 1 . 3 2 3 Gunslinging 1 | . . . . 1 . . Exploded 3 | . . 1 . 3 2 2 Melee 1 | . . . . . 1 . Uniques/NPCs Destroyed . | . . . . . . . Combat | -11 -10 -10 -10 -9 -8 -8 -------- Run | Yrd Mat Min Exi Min Mat Sto Hostile Shots Fired 342 | . 14 71 . 26 166 65 Missed 101 | . 4 18 . 9 47 23 Damage Taken 3755 | . 95 952 . 228 1551 929 Core 749 | . 15 164 . 15 396 159 Absorbed by Shields . | . . . . . . . Core Remaining (%) 61 | 100 . . . 22 . . Volleys Fired 150 | . 16 42 . 8 47 37 Largest 2 | . 2 2 . 2 2 1 Hottest 88 | . 40 60 . 63 88 56 Shots Fired 250 | . 32 83 . 14 84 37 Gun 212 | . 32 77 . 6 78 19 Cannon . | . . . . . . . Launcher 38 | . . 6 . 8 6 18 Special . | . . . . . . . Kinetic 170 | . 32 77 . 6 55 . Thermal 42 | . . . . . 23 19 Explosive 38 | . . 6 . 8 6 18 Electromagnetic . | . . . . . . . Robot Hit Streak 14 | . 6 11 . 10 13 14 Robot Miss Streak 5 | . 1 5 . 2 4 4 Penetration Max . | . . . . . . . Secondary Targets 4 | . 1 1 . 2 . . Max Gunslinging Chain 1 | . 1 1 . 1 . . Shots Hit Robots 161 | . 22 39 . 9 54 37 Core Hits 114 | . 12 24 . 13 32 33 Critical Kills 1 | . . . . . 1 . Critical Parts Destroyed 2 | . . . . . . 2 Critical Strikes 6 | . . . . . 2 4 Burn 3 | . . . . . 1 2 Smash 3 | . . . . . 1 2 Melee Attacks 24 | . . . . . 5 19 Impact 24 | . . . . . 5 19 Slashing . | . . . . . . . Piercing . | . . . . . . . Sneak Attacks 7 | . . . . . . 7 Combat Hostiles . | . . . . . . . Follow-up Attacks . | . . . . . . . Damage Inflicted 4926 | . 244 712 . 545 1472 1953 Guns 1914 | . 244 606 . 84 763 217 Cannons . | . . . . . . . Explosions 2295 | . . 106 . 461 641 1087 Melee 717 | . . . . . 68 649 Ramming . | . . . . . . . Kinetic 1436 | . 244 606 . 84 502 . Thermal 478 | . . . . . 261 217 Explosive 2295 | . . 106 . 461 641 1087 Electromagnetic . | . . . . . . . Impact 717 | . . . . . 68 649 Slashing . | . . . . . . . Piercing . | . . . . . . . Highest Corruption 1 | . . . . . . 1 Average Corruption 1 | . . . . . . 1 Corruption Purged . | . . . . . . . Corruption Blocked . | . . . . . . . Effects 6 | . . . . . . 6 Message Errors 2 | . . . . . . 2 Matter Fused 1 | . . . . . . 1 Heat Flow Errors 1 | . . . . . . 1 Energy Discharges 1 | . . . . . . 1 Data Loss (major) 1 | . . . . . . 1 Overload Shots . | . . . . . . . Overflow Damage 415 | . . . . 30 4 381 Projectiles 19 | . . . . . . 19 Explosions 68 | . . . . 30 4 34 Melee 328 | . . . . . . 328 Knockbacks 4 | . . . . . . 4 Impact 4 | . . . . . . 4 Kinetic . | . . . . . . . Secondary . | . . . . . . . Self-Inflicted Damage 408 | . . 5 . 96 . 307 Shots 17 | . . 1 . 4 . 12 Rammed . | . . . . . . . Targets Rammed . | . . . . . . . Kicked . | . . . . . . . Crushed . | . . . . . . . Highest Temperature 163 | . 6 26 . 6 163 141 Average Temperature 35 | . 6 7 . 3 56 51 Received Heat Transfer 1165 | . 30 100 . . 720 315 Siege Activations . | . . . . . . . Robots Corrupted . | . . . . . . . Combat Hostiles . | . . . . . . . Parts Fried 12 | . . . . . . 12 Impact Corruptions 12 | . . . . . . 12 Robots Melted . | . . . . . . . Combat Hostiles . | . . . . . . . Parts Melted 2 | . . . . . 1 1 Heat Transferred 1406 | . . . . . 703 703 Parts Sabotaged . | . . . . . . . Parts Stolen . | . . . . . . . Parts Stripped . | . . . . . . . Power Chain Reactions . | . . . . . . . Alert | -11 -10 -10 -10 -9 -8 -8 ------- Run | Yrd Mat Min Exi Min Mat Sto Peak Influence 387 | . 148 164 . 387 247 323 Initial 100 | . . 57 . . 72 100 Average 146 | . 72 65 . 269 120 185 Maximum Alert Level 1 | . . . . 1 1 1 Low Security (%) 75 | 100 100 100 . 21 91 64 Level 1 24 | . . . . 78 8 35 Level 2 . | . . . . . . . Level 3 . | . . . . . . . Level 4 . | . . . . . . . Level 5 . | . . . . . . . High Security . | . . . . . . . Max Security . | . . . . . . . Squads Dispatched 9 | . . . . . 6 3 Investigation 3 | . . . . . 1 2 Extermination . | . . . . . . . Reinforcement 2 | . . . . . 1 1 Assault . | . . . . . . . Garrison 4 | . . . . . 4 . Intercept . | . . . . . . . Searches Triggered . | . . . . . . . Construction Impeded 2 | . . . . . 1 1 Haulers Reinforced . | . . . . . . . Active Scanning Responses . | . . . . . . . Cargo Convoy Interrupts . | . . . . . . . Stealth | -11 -10 -10 -10 -9 -8 -8 --------- Run | Yrd Mat Min Exi Min Mat Sto Distress Signals 7 | . . . . . 5 2 Communications Jammed . | . . . . . . . Distress Signals . | . . . . . . . Times Spotted 103 | . 7 17 . 14 48 17 Peak Tracking Total 10 | . 3 3 . 4 10 4 Tactical Retreats 6 | . . 2 . 2 2 . Traps | -11 -10 -10 -10 -9 -8 -8 ------- Run | Yrd Mat Min Exi Min Mat Sto Traps Triggered 2 | . . . . . . 2 Indirectly . | . . . . . . . Trap Hack Attempts . | . . . . . . . Triggered . | . . . . . . . Disarmed . | . . . . . . . Reprogrammed . | . . . . . . . Reused 1 | . . . . . . 1 Traps Reconfigurated 10 | . . . . . 1 9 Traps Extracted . | . . . . . . . Installed . | . . . . . . . Triggered 1 | . . . . . . 1 Machines | -11 -10 -10 -10 -9 -8 -8 ---------- Run | Yrd Mat Min Exi Min Mat Sto Machines Disabled 7 | . . . . . 1 6 Max in Single Turn 2 | . . . . . 1 2 Machines Repaired . | . . . . . . . Machines Dismantled . | . . . . . . . Machines Sabotaged . | . . . . . . . Overloaded Fab Kills . | . . . . . . . Hacking | -11 -10 -10 -10 -9 -8 -8 --------- Run | Yrd Mat Min Exi Min Mat Sto Machines Accessed 15 | . . 1 1 . 1 12 Terminals 10 | . . . . . . 10 Fabricators . | . . . . . . . Repair Stations . | . . . . . . . Recycling Units 1 | . . . . . . 1 Scanalyzers . | . . . . . . . Garrison Access 2 | . . . . . 1 1 Total Hacks 28 | . . 1 1 . 2 24 Successful 6 | . . 1 1 . . 4 Failed 22 | . . . . . 2 20 Catastrophic 9 | . . . . . 1 8 Database Lockouts . | . . . . . . . Manual 11 | . . . 1 . . 10 Terminals 17 | . . . . . . 17 Fabricators . | . . . . . . . Repair Stations . | . . . . . . . Recycling Units 3 | . . . . . . 3 Scanalyzers . | . . . . . . . Garrison Access 6 | . . . . . 2 4 Terminal Hacks 6 | . . 1 1 . . 4 Record 1 | . . . 1 . . . Open Door 5 | . . 1 . . . 4 Fabricator Hacks . | . . . . . . . Repair Station Hacks . | . . . . . . . Recycling Unit Hacks . | . . . . . . . Scanalyzer . | . . . . . . . Garrison Access Hacks . | . . . . . . . Unauthorized Hacks . | . . . . . . . Terminals . | . . . . . . . Fabricators . | . . . . . . . Repair Stations . | . . . . . . . Recycling Units . | . . . . . . . Scanalyzers . | . . . . . . . Garrison Access . | . . . . . . . Data Cores Recovered . | . . . . . . . Used . | . . . . . . . Hacking Detections 10 | . . . . . 1 9 Full Trace Events 3 | . . . . . 1 2 Feedback Events 1 | . . . . . . 1 Corruption 1 | . . . . . . 1 Feedback Blocked . | . . . . . . . Robot Schematics Acquired . | . . . . . . . Robots Built . | . . . . . . . Authchips . | . . . . . . . Time . | . . . . . . . Total Robot Build Rating . | . . . . . . . Part Schematics Acquired . | . . . . . . . Parts Built . | . . . . . . . Authchips . | . . . . . . . Time . | . . . . . . . Total Part Build Rating . | . . . . . . . Parts Repaired . | . . . . . . . Time . | . . . . . . . Parts Recycled . | . . . . . . . Recycled Matter . | . . . . . . . Retrieved Matter . | . . . . . . . Retrieved Components . | . . . . . . . Parts Scanalyzed . | . . . . . . . Part Schematics Acquired . | . . . . . . . Parts Damaged . | . . . . . . . Bothacking | -11 -10 -10 -10 -9 -8 -8 ------------ Run | Yrd Mat Min Exi Min Mat Sto Used RIF Installer . | . . . . . . . Robots Hacked . | . . . . . . . Non-combat . | . . . . . . . Combat . | . . . . . . . Robot Hacks Applied . | . . . . . . . Relay Couplers Released . | . . . . . . . Fabnet Peak Effective % . | . . . . . . . Robots Rewired . | . . . . . . . Allies Hacked . | . . . . . . . Hacks Repelled . | . . . . . . . Allies | -11 -10 -10 -10 -9 -8 -8 -------- Run | Yrd Mat Min Exi Min Mat Sto Total Allies . | . . . . . . . Largest Group . | . . . . . . . Highest-Rated Group . | . . . . . . . Highest-Rated Ally . | . . . . . . . Total Orders 3 | . . . . . . 3 EXPLORE 3 | . . . . . . 3 Ally Attacks . | . . . . . . . Total Damage . | . . . . . . . Kills . | . . . . . . . Allies Corrupted . | . . . . . . . Allies Melted . | . . . . . . . Intel | -11 -10 -10 -10 -9 -8 -8 ------- Run | Yrd Mat Min Exi Min Mat Sto Robot Analysis Total . | . . . . . . . Derelict Logs Recovered 1 | . . 1 . . . . Drone Launches 34 | . . . . . 16 18 Drone Recoveries 4 | . . . . . . 4 Exploration | -11 -10 -10 -10 -9 -8 -8 ------------- Run | Yrd Mat Min Exi Min Mat Sto Turns Passed 4985 | 70 257 783 1366 410 595 1504 Spaces Moved 2252 | 40 113 371 650 151 196 731 Core 124 | 19 . . . . 7 98 Treads 1679 | 21 113 371 650 151 117 256 Legs 91 | . . . . . . 91 Wheels 286 | . . . . . . 286 Hover . | . . . . . . . Flight 72 | . . . . . 72 . Fastest Speed 37 | 50 160 160 160 240 37 95 Average Speed 172 | 151 160 162 209 240 169 135 Slowest Speed 750 | 200 160 240 240 240 750 450 Overloaded Moves . | . . . . . . . Propulsion Burnouts . | . . . . . . . Robots Hopped 1 | . . . . . 1 . Cave-ins Triggered . | . . . . . . . Exploration Rate (%) 48 | 3 29 81 83 38 43 59 Regions Visited 6 Branch Regions 4 Pre-discovered Areas 1 | . . 1 . . . . Known Exits Taken 5 | . 1 1 1 1 1 . Unknown Exits Taken 1 | 1 . . . . . . Scrap Searched 3 | . . 2 . 1 . . Spaces Dug 22 | . . . . . 2 20 Terrain Destroyed 285 | . . 39 . 83 53 110 Melee 11 | . . . . . 2 9 Projectile . | . . . . . . . AOE 274 | . . 39 . 83 51 101 Terrain Rammed . | . . . . . . . Walls Destroyed . | . . . . . . . Machines Disabled . | . . . . . . . Actions | -11 -10 -10 -10 -9 -8 -8 --------- Run | Yrd Mat Min Exi Min Mat Sto Total 3073 | 47 162 480 658 186 374 1166 Wait 509 | . 13 53 6 23 90 324 Move 2244 | 39 112 370 649 150 193 731 Hop 1 | . . . . . 1 . Pick Up 27 | 2 11 3 1 1 5 4 Fast Attach 28 | 6 3 . . . 3 16 Attach 22 | . . 4 . 2 11 5 Detach 6 | . . . . . 4 2 Swap 25 | . 1 8 1 2 10 3 Drop 17 | . 6 . 1 . 5 5 Fire 150 | . 16 42 . 8 47 37 Melee 24 | . . . . . 5 19 Ram . | . . . . . . . Kick . | . . . . . . . Crush . | . . . . . . . Escape Stasis 15 | . . . . . . 15 Rewire . | . . . . . . . Trap . | . . . . . . . Miscellaneous 5 | . . . . . . 5 Route ------- -11/Scrapyard -10/Materials -10/Mines (discovered 2 exits: *Mat / *Exi) -10/Exiles -9/Mines -8/Materials (discovered 2 exits: [*Fac] / *Sto) -8/Storage History --------- Turn | Location | Event 12 | -11/Scrapyard | Discovered new exit (range 16) 71 | -11/Scrapyard | Entered Materials 305 | -10/Materials | Build established: Mutant 312 | -10/Materials | Discovered new exit (range 11) 327 | -10/Materials | Identified exit to Mines 328 | -10/Materials | Entered Mines 446 | -10/Mines | Discovered new exit (range 6) 452 | -10/Mines | Identified exit to Materials 502 | -10/Mines | Assembled infested the area 694 | -10/Mines | Core integrity fell below 50% 705 | -10/Mines | Found the Drone Emporium 714 | -10/Mines | Found Prototype Device 895 | -10/Mines | Learned location of Storage (-8) 911 | -10/Mines | Received a Rocket Launcher from a helpful Derelict 1103 | -10/Mines | Deemed a non-threat by the Exiles lab entrance 1104 | -10/Mines | Discovered new exit (range 5) 1109 | -10/Mines | Identified exit to Exiles 1111 | -10/Mines | Entered Exiles 1151 | -10/Exiles | Met 8R-AWN 1177 | -10/Exiles | Met EX-HEX 1227 | -10/Exiles | Met EX-BIN 1321 | -10/Exiles | Aligned with FarCom system 1323 | -10/Exiles | Given EX-Vault access code 1359 | -10/Exiles | Opened EX-Vault 1422 | -10/Exiles | Warned to stay clear of 0b10 Research branches 1553 | -10/Exiles | Met EX-DEC 1597 | -10/Exiles | Visited The Gauntlet 2210 | -10/Exiles | Found Prototype Device 2448 | -10/Exiles | Discovered new exit (range 14) 2472 | -10/Exiles | Identified exit to Mines 2477 | -10/Exiles | Left Exiles lab with Trap Reconfigurator 2477 | -10/Exiles | Entered Mines 2688 | -9/Mines | A weapon hastily lodged in a ceiling crevice suddenly fell to the ground 2858 | -9/Mines | Discovered new exit (range 14) 2885 | -9/Mines | Identified exit to Materials 2887 | -9/Mines | Entered Materials 2887 | -8/Materials | Evolved 4 slots: Propulsion x2, Utility x2 2887 | -8/Materials | Identified Decoy Drone Bay 2889 | -8/Materials | Identified Trap Reconfigurator 3012 | -8/Materials | Garrison activated, responded to threat 3269 | -8/Materials | Garrison activated, responded to threat 3284 | -8/Materials | Discovered new exit (range 36) 3297 | -8/Materials | Discovered new exit (range 75) 3414 | -8/Materials | Core integrity fell below 50% 3432 | -8/Materials | Lost 6 parts (1p2n1u2w) 3480 | -8/Materials | Identified exit to Storage 3482 | -8/Materials | Entered Storage 3511 | -8/Storage | Lost 4 parts (1p2n1u) 3658 | -8/Storage | Core integrity fell below 20% 3680 | -8/Storage | Lost 8 allies 4573 | -8/Storage | Lost 3 parts (2n1w) 4891 | -8/Storage | Build established: Scavenger-Assassin 4986 | -8/Storage | Destroyed by G-47 Trooper with Particle Gun Last Messages --------------- 04771_ A-02 Transporter system terminally corrupted. 04771_ Weight Redist. System fried. 04823_ Connecting with Garrison Access... 04839_ System corrupted: Substantial component data lost. 04841_ Acquired 30 matter. 04842_ Extracted 4 energy. 04901_ Connecting with Terminal... 04943_ K-01 Serf cleans the Component Storage. 04944_ Destroyed Imp. Hover Unit. 04944_ W-25 Informer system corrupted by crushing effect. 04944_ W-25 Informer knocked back. 04945_ W-25 Informer system terminally corrupted. 04945_ Imp. Hover Unit fried. 04945_ Visual Processing Unit fried. 04945_ Imp. Signal Interpreter fried. 04950_ K-01 Serf collects debris. 04969_ W-25 Informer sends out distress signal. 04969_ K-01 Serf cleans the Transfer Shaft. 04980_ K-01 Serf cleans the Component Storage. 04982_ Deuterium Engine destroyed. Map ----- +----------------------------------------------------+ | ????####?##%^^##########?###### """ | | ?????????## ##########??##""" """ | | ???????#### #### !!!##??##"G | | ???????# ## ##T# !!!##?###""" """ | | ?????#### # # ##??##### """ | | ?????#!! [+ + !!##?###### """ | | ?????#!! !# % # !!##?##?### | | ?????#!! ### # #!!!!##?????##"T#### | | ?????######## ##########?????######## | | ???????###### #############?######### | | ??????###"""# ####?#######??#???????? | | ??????###"T"#+#######"""##??#?????### | | ??????## #####"R"######?##?#?? | | ??????## """"" %### #" "### ? ?? #? | | ??????## """"" " # ??? ? ?? | | ??????## """"" # # ????????? | | ??????## # # ????? ??? | | ??????## """"" # # ????????# | | ??????## """"" # """ """ # ????????? | | ??????## """"" # """ """ # ????????? | | ??###### g """ """ # ????????? | | ??###########+### # ????????? | | ?? """ # #####+######????????? | | ## "T" # g ????????? | | ## ;^ g ????????? | | ## # @ ????????? | | ## # ############????????? | | ## """ ## #############????????? | | ##Y ""? ## w # ??????????????????? | | # "???## # ???????????????????? | | ## ???## # ???????????????????? | | ###???????## + ???????????????????? | | ??????????## # ???????????????????? | | ??????????## # ???????????????????? | | ??????????## # ???????????????????? | | ???????????? # ???????????????????? | | ???????????? # ???????????????????? | | ???????????? ##???????????????????? | | ???????????? ???????????????????? | | ??????????? ????????????????????? | | ???????????#####????????????????????? | | ???????????## ????????????????????? | | ????????????????????????????????????? | | ????????????????????????????????????? | | ????????????????????????????????????? | | ????????????????????????????????????? | | | | | | | | | +----------------------------------------------------+ Best States ------------- Heat Dissipation 31 Energy Generation 14 Energy Capacity 275 Matter Stores 300 Matter Capacity 300 Sight Range 16 Terrain Scan Range 16 Terrain Scan Density 85 Armor Coverage 225 Evasion (%) 62 Recoil Reduction 2 Item Schematics ----------------- None Robot Schematics ------------------ None Fabricated ------------ Nothing Alien Tech Used ----------------- None Achievements -------------- Release The Drones! Challenges ------------ None Game ------ Seed ServoChargePendant Manual? 0 Play Time 00:33:22 Cumulative 54.4 hours Start 2024.04.28 @ 15:55:04 End 2024.04.28 @ 16:27:35 Sessions 1 Manual Loads 0 Difficulty Rogue Special Mode None Game No. 88 Rogue 83 Adventurer 5 Explorer 0 Win Type - Total 1 Types 1/0/0/0/0/0/0/0/0 Lore% 22 Gallery% 52 Achievement% 35 Wizard Run 0 Options --------- Layout 0 ASCII 0 Keyboard 0 Movement Mouse Keybinds 0 Fullscreen 1 Font 24/Smallcaps Map View 76x50 Zoom Use 7% Tactical HUD 1 Map Filters NONE Filters NONE Steam 1 RUN: 44eb731c-2470-478c-bc73-d8583c33db24